[Event "Late-Titled-Tuesday-Blitz-October-24-2023"]
[Site "Chess.com"]
[Date "2023.10.24"]
[Round "4"]
[White "Alexei_Gubajdullin"]
[Black "SaqoChess_Twitch"]
[Result "1/2-1/2"]
[WhiteElo "2708"]
[BlackElo "2558"]
[TimeControl "180+1"]
[EndTime "14:41:07 PDT"]
[Termination "Game drawn by repetition"]

1. d4 {[%clk 0:02:59.4]} 1... d5 {[%clk 0:02:59.6]} 2. Nf3 {[%clk 0:02:59.3]}
2... e6 {[%clk 0:03:00.3]} 3. Bf4 {[%clk 0:02:59.4]} 3... Bd6 {[%clk 0:03:00]}
4. Bg3 {[%clk 0:02:59.4]} 4... Nf6 {[%clk 0:03:00.1]} 5. Nbd2 {[%clk 0:02:59.3]}
5... c5 {[%clk 0:02:58.5]} 6. e3 {[%clk 0:02:59.2]} 6... Nc6 {[%clk 0:02:58.5]}
7. c3 {[%clk 0:02:57.7]} 7... cxd4 {[%clk 0:02:54.9]} 8. exd4 {[%clk 0:02:56.6]}
8... Qc7 {[%clk 0:02:54.4]} 9. Bd3 {[%clk 0:02:55.8]} 9... O-O {[%clk
0:02:52.2]} 10. O-O {[%clk 0:02:55.6]} 10... Bxg3 {[%clk 0:02:52.4]} 11. hxg3
{[%clk 0:02:55.2]} 11... Rb8 {[%clk 0:02:52.1]} 12. Qe2 {[%clk 0:02:54.8]} 12...
a6 {[%clk 0:02:49]} 13. a4 {[%clk 0:02:54.4]} 13... b5 {[%clk 0:02:42.6]} 14.
axb5 {[%clk 0:02:53.3]} 14... axb5 {[%clk 0:02:43.5]} 15. Bxb5 {[%clk 0:02:52]}
15... Na7 {[%clk 0:02:43.8]} 16. Bd3 {[%clk 0:02:26.9]} 16... Rxb2 {[%clk
0:02:43.4]} 17. g4 {[%clk 0:02:27]} 17... h6 {[%clk 0:02:01.2]} 18. g5 {[%clk
0:01:56.1]} 18... hxg5 {[%clk 0:02:00.6]} 19. Rfc1 {[%clk 0:01:30.8]} 19... g4
{[%clk 0:01:51.9]} 20. Ne5 {[%clk 0:01:30.5]} 20... Nc6 {[%clk 0:01:50.4]} 21.
Qe3 {[%clk 0:01:23.4]} 21... Nxe5 {[%clk 0:01:48.7]} 22. dxe5 {[%clk 0:01:23]}
22... Nd7 {[%clk 0:01:47.7]} 23. Nf1 {[%clk 0:01:04.5]} 23... Qxe5 {[%clk
0:01:46.4]} 24. Qa7 {[%clk 0:01:04.1]} 24... Qb8 {[%clk 0:01:39.7]} 25. Qd4
{[%clk 0:01:02.8]} 25... Qb6 {[%clk 0:01:38.6]} 26. Ne3 {[%clk 0:00:59.7]} 26...
Qxd4 {[%clk 0:01:35.1]} 27. cxd4 {[%clk 0:00:59.7]} 27... Nf6 {[%clk 0:01:31.2]}
28. Ra7 {[%clk 0:00:57.2]} 28... Bb7 {[%clk 0:01:27]} 29. Rc7 {[%clk 0:00:55.9]}
29... Rb8 {[%clk 0:01:25.7]} 30. g3 {[%clk 0:00:47.7]} 30... Kf8 {[%clk
0:01:18.7]} 31. Ng2 {[%clk 0:00:46.1]} 31... g5 {[%clk 0:01:11.6]} 32. Ne3
{[%clk 0:00:45.6]} 32... Rb4 {[%clk 0:01:01.2]} 33. Bc2 {[%clk 0:00:44.6]} 33...
Rb6 {[%clk 0:00:56.6]} 34. Bd1 {[%clk 0:00:43.9]} 34... Ne8 {[%clk 0:00:50.5]}
35. Rd7 {[%clk 0:00:43.5]} 35... f5 {[%clk 0:00:49.7]} 36. Bxg4 {[%clk
0:00:30.8]} 36... fxg4 {[%clk 0:00:47.2]} 37. Nxg4 {[%clk 0:00:30.8]} 37... Nd6
{[%clk 0:00:37]} 38. Ne5 {[%clk 0:00:28.5]} 38... Ra8 {[%clk 0:00:29.7]} 39.
Rxa8+ {[%clk 0:00:26.6]} 39... Bxa8 {[%clk 0:00:29.6]} 40. Rd8+ {[%clk
0:00:26.7]} 40... Ke7 {[%clk 0:00:27]} 41. Rxa8 {[%clk 0:00:26.4]} 41... Nf5
{[%clk 0:00:18.5]} 42. Rg8 {[%clk 0:00:23.8]} 42... Nxd4 {[%clk 0:00:17]} 43.
Rxg5 {[%clk 0:00:22.2]} 43... Kf6 {[%clk 0:00:16.5]} 44. Rh5 {[%clk 0:00:22.3]}
44... Rb1+ {[%clk 0:00:14.8]} 45. Kg2 {[%clk 0:00:22.4]} 45... Ne2 {[%clk
0:00:13.9]} 46. Ng4+ {[%clk 0:00:21.3]} 46... Ke7 {[%clk 0:00:14]} 47. Rh7+
{[%clk 0:00:20.7]} 47... Kd6 {[%clk 0:00:14]} 48. f4 {[%clk 0:00:20.3]} 48...
Rb2 {[%clk 0:00:12.1]} 49. Kf3 {[%clk 0:00:17.9]} 49... Ng1+ {[%clk 0:00:07.6]}
50. Ke3 {[%clk 0:00:18]} 50... Re2+ {[%clk 0:00:08.1]} 51. Kd3 {[%clk 0:00:18]}
51... Rg2 {[%clk 0:00:08.8]} 52. Ne5 {[%clk 0:00:17.5]} 52... Rxg3+ {[%clk
0:00:08.1]} 53. Kc2 {[%clk 0:00:17.5]} 53... Nf3 {[%clk 0:00:07.6]} 54. Rd7+
{[%clk 0:00:14.6]} 54... Kc5 {[%clk 0:00:08]} 55. Rc7+ {[%clk 0:00:14.4]} 55...
Kd6 {[%clk 0:00:07.1]} 56. Rd7+ {[%clk 0:00:14.3]} 56... Kc5 {[%clk 0:00:07.6]}
57. Rc7+ {[%clk 0:00:14.4]} 57... Kb5 {[%clk 0:00:08]} 58. Re7 {[%clk
0:00:13.4]} 58... Nxe5 {[%clk 0:00:08.3]} 59. fxe5 {[%clk 0:00:13.5]} 59... Rg6
{[%clk 0:00:08.9]} 60. Kd3 {[%clk 0:00:12.7]} 60... Kc5 {[%clk 0:00:09.3]} 61.
Rc7+ {[%clk 0:00:12.5]} 61... Kb6 {[%clk 0:00:09.7]} 62. Re7 {[%clk 0:00:12.7]}
62... Kc6 {[%clk 0:00:10]} 63. Kd4 {[%clk 0:00:12.1]} 63... Rg4+ {[%clk
0:00:10]} 64. Kd3 {[%clk 0:00:12.2]} 64... Rg6 {[%clk 0:00:10.7]} 65. Kd4 {[%clk
0:00:12.3]} 65... Rh6 {[%clk 0:00:11.4]} 66. Kd3 {[%clk 0:00:12.3]} 66... Kc5
{[%clk 0:00:06.7]} 67. Rc7+ {[%clk 0:00:11.8]} 67... Kb5 {[%clk 0:00:07.2]} 68.
Re7 {[%clk 0:00:11.7]} 68... Kb6 {[%clk 0:00:06.9]} 69. Kd4 {[%clk 0:00:11.5]}
69... Kc6 {[%clk 0:00:07.3]} 70. Kd3 {[%clk 0:00:11.2]} 70... Rg6 {[%clk
0:00:07.4]} 1/2-1/2

[Event "Late-Titled-Tuesday-Blitz-October-24-2023"]
[Site "Chess.com"]
[Date "2023.10.24"]
[Round "4"]
[White "Tonychess32"]
[Black "SlippperyWhenWet"]
[Result "1-0"]
[WhiteElo "2520"]
[BlackElo "2348"]
[TimeControl "180+1"]
[EndTime "14:41:14 PDT"]
[Termination "Tonychess32 won by checkmate"]

1. e4 {[%clk 0:03:00.9]} 1... c5 {[%clk 0:03:00]} 2. Nf3 {[%clk 0:02:58.6]} 2...
e6 {[%clk 0:03:00.4]} 3. c3 {[%clk 0:02:59]} 3... d5 {[%clk 0:02:58.8]} 4. exd5
{[%clk 0:02:59.1]} 4... exd5 {[%clk 0:02:59.1]} 5. d4 {[%clk 0:02:59.5]} 5...
Nc6 {[%clk 0:02:58.7]} 6. Bd3 {[%clk 0:02:59.6]} 6... Nf6 {[%clk 0:02:57.1]} 7.
O-O {[%clk 0:02:59.3]} 7... Be7 {[%clk 0:02:51.4]} 8. Re1 {[%clk 0:02:59.1]}
8... O-O {[%clk 0:02:51.3]} 9. dxc5 {[%clk 0:02:58.2]} 9... Bxc5 {[%clk
0:02:51.4]} 10. Be3 {[%clk 0:02:56]} 10... Bxe3 {[%clk 0:02:42]} 11. Rxe3 {[%clk
0:02:56.1]} 11... Qb6 {[%clk 0:02:42.7]} 12. Qc2 {[%clk 0:02:53.3]} 12... Bg4
{[%clk 0:02:37.4]} 13. Nbd2 {[%clk 0:02:50.1]} 13... Rac8 {[%clk 0:02:34.6]} 14.
Qb3 {[%clk 0:02:43.6]} 14... Qc7 {[%clk 0:02:11.7]} 15. h3 {[%clk 0:02:39.7]}
15... Bh5 {[%clk 0:02:09.9]} 16. Rae1 {[%clk 0:02:37.4]} 16... Bg6 {[%clk
0:02:01.7]} 17. Bxg6 {[%clk 0:02:35.3]} 17... hxg6 {[%clk 0:02:02.2]} 18. Qa4
{[%clk 0:02:13.3]} 18... a6 {[%clk 0:01:35.9]} 19. Qh4 {[%clk 0:02:08.5]} 19...
Rfe8 {[%clk 0:01:30.3]} 20. Rxe8+ {[%clk 0:01:57.9]} 20... Rxe8 {[%clk
0:01:31.2]} 21. Rxe8+ {[%clk 0:01:57.7]} 21... Nxe8 {[%clk 0:01:31]} 22. Nb3
{[%clk 0:01:47.7]} 22... Nf6 {[%clk 0:01:29.7]} 23. Qg5 {[%clk 0:01:46.5]} 23...
Qe7 {[%clk 0:01:24.9]} 24. Qd2 {[%clk 0:01:43.9]} 24... Qe4 {[%clk 0:01:21.2]}
25. Kh2 {[%clk 0:01:29.7]} 25... Ne5 {[%clk 0:01:13.7]} 26. Nxe5 {[%clk
0:01:22.5]} 26... Qxe5+ {[%clk 0:01:14.6]} 27. Kg1 {[%clk 0:01:19.6]} 27... Ne4
{[%clk 0:01:13.8]} 28. Qe3 {[%clk 0:01:18.3]} 28... Qh5 {[%clk 0:01:08.6]} 29.
f3 {[%clk 0:01:16.2]} 29... Nf6 {[%clk 0:01:03]} 30. Nd4 {[%clk 0:01:14.8]}
30... Qh6 {[%clk 0:00:48.7]} 31. Qxh6 {[%clk 0:00:58.9]} 31... gxh6 {[%clk
0:00:49.6]} 32. Nb3 {[%clk 0:00:59.1]} 32... b6 {[%clk 0:00:45.9]} 33. Kf2
{[%clk 0:00:59.3]} 33... Kf8 {[%clk 0:00:45.8]} 34. Ke3 {[%clk 0:00:54.6]} 34...
Ke7 {[%clk 0:00:46.3]} 35. Nd4 {[%clk 0:00:44.9]} 35... Kd6 {[%clk 0:00:45.4]}
36. g4 {[%clk 0:00:41.8]} 36... Nd7 {[%clk 0:00:44.3]} 37. f4 {[%clk 0:00:40]}
37... b5 {[%clk 0:00:39.6]} 38. b4 {[%clk 0:00:34.1]} 38... Nb6 {[%clk
0:00:37.7]} 39. Nb3 {[%clk 0:00:32.4]} 39... Nc4+ {[%clk 0:00:31.8]} 40. Kd4
{[%clk 0:00:32.5]} 40... Kc6 {[%clk 0:00:22.4]} 41. Kd3 {[%clk 0:00:09.3]} 41...
Kb6 {[%clk 0:00:18.6]} 42. Nc5 {[%clk 0:00:07.7]} 42... a5 {[%clk 0:00:16.5]}
43. Kd4 {[%clk 0:00:08]} 43... axb4 {[%clk 0:00:14.9]} 44. cxb4 {[%clk
0:00:08.9]} 44... Kc6 {[%clk 0:00:15.3]} 45. Nd3 {[%clk 0:00:09]} 45... f6
{[%clk 0:00:13.6]} 46. Nc5 {[%clk 0:00:05]} 46... Nd6 {[%clk 0:00:08.4]} 47. Ne6
{[%clk 0:00:04.5]} 47... h5 {[%clk 0:00:06.7]} 48. gxh5 {[%clk 0:00:04.3]} 48...
gxh5 {[%clk 0:00:06.6]} 49. Ng7 {[%clk 0:00:05]} 49... h4 {[%clk 0:00:06.2]} 50.
Nh5 {[%clk 0:00:05.2]} 50... Nf5+ {[%clk 0:00:06.2]} 51. Kd3 {[%clk 0:00:04.8]}
51... Ng3 {[%clk 0:00:02.9]} 52. Nxf6 {[%clk 0:00:04.8]} 52... Ne4 {[%clk
0:00:03.4]} 53. Nxe4 {[%clk 0:00:04.7]} 53... dxe4+ {[%clk 0:00:02.9]} 54. Kxe4
{[%clk 0:00:05.6]} 54... Kd6 {[%clk 0:00:03.8]} 55. f5 {[%clk 0:00:05.8]} 55...
Ke7 {[%clk 0:00:04.3]} 56. Ke5 {[%clk 0:00:06.3]} 56... Kf7 {[%clk 0:00:04.9]}
57. f6 {[%clk 0:00:05.9]} 57... Kf8 {[%clk 0:00:05.4]} 58. Kf5 {[%clk
0:00:06.3]} 58... Kg8 {[%clk 0:00:06]} 59. Kg4 {[%clk 0:00:05.9]} 59... Kh7
{[%clk 0:00:06.4]} 60. Kg5 {[%clk 0:00:05.7]} 60... Kh8 {[%clk 0:00:06.6]} 61.
Kxh4 {[%clk 0:00:06.1]} 61... Kh7 {[%clk 0:00:07]} 62. Kg5 {[%clk 0:00:06.6]}
62... Kh8 {[%clk 0:00:07.3]} 63. Kf5 {[%clk 0:00:06.9]} 63... Kh7 {[%clk
0:00:07.8]} 64. Ke6 {[%clk 0:00:07.2]} 64... Kg6 {[%clk 0:00:08.4]} 65. f7
{[%clk 0:00:07.2]} 65... Kh7 {[%clk 0:00:08.8]} 66. Ke7 {[%clk 0:00:07.4]} 66...
Kg6 {[%clk 0:00:09.2]} 67. f8=Q {[%clk 0:00:07.3]} 67... Kh7 {[%clk 0:00:10.1]}
68. Qf3 {[%clk 0:00:06.1]} 68... Kg6 {[%clk 0:00:11]} 69. Qg4+ {[%clk
0:00:05.8]} 69... Kh7 {[%clk 0:00:11.9]} 70. Kd6 {[%clk 0:00:05.9]} 70... Kh6
{[%clk 0:00:11.7]} 71. Kc5 {[%clk 0:00:06.3]} 71... Kh7 {[%clk 0:00:12.6]} 72.
Kxb5 {[%clk 0:00:06.7]} 72... Kh6 {[%clk 0:00:13.5]} 73. a4 {[%clk 0:00:07]}
73... Kh7 {[%clk 0:00:14.2]} 74. a5 {[%clk 0:00:07.6]} 74... Kh6 {[%clk
0:00:15.1]} 75. a6 {[%clk 0:00:08]} 75... Kh7 {[%clk 0:00:16]} 76. a7 {[%clk
0:00:08.4]} 76... Kh6 {[%clk 0:00:16.9]} 77. a8=Q {[%clk 0:00:05.9]} 77... Kh7
{[%clk 0:00:17.8]} 78. Kc5 {[%clk 0:00:05.7]} 78... Kh6 {[%clk 0:00:18.2]} 79.
b5 {[%clk 0:00:06.2]} 79... Kh7 {[%clk 0:00:18.7]} 80. b6 {[%clk 0:00:06.7]}
80... Kh6 {[%clk 0:00:19.6]} 81. b7 {[%clk 0:00:06.9]} 81... Kh7 {[%clk
0:00:20.5]} 82. b8=Q {[%clk 0:00:06.7]} 82... Kh6 {[%clk 0:00:21.3]} 83. Qe6+
{[%clk 0:00:03.7]} 83... Kh7 {[%clk 0:00:22.2]} 84. Qc7# {[%clk 0:00:03.4]} 1-0

[Event "Late-Titled-Tuesday-Blitz-October-24-2023"]
[Site "Chess.com"]
[Date "2023.10.24"]
[Round "4"]
[White "Grischuk"]
[Black "Korchmar_Vasiliy"]
[Result "1-0"]
[WhiteElo "2993"]
[BlackElo "2776"]
[TimeControl "180+1"]
[EndTime "14:41:17 PDT"]
[Termination "Grischuk won by resignation"]

1. d4 {[%clk 0:03:00.9]} 1... Nf6 {[%clk 0:02:59.3]} 2. c4 {[%clk 0:03:01]} 2...
e6 {[%clk 0:02:57.8]} 3. Bg5 {[%clk 0:03:00.3]} 3... d5 {[%clk 0:02:58.1]} 4. e3
{[%clk 0:02:59.6]} 4... Be7 {[%clk 0:02:57.3]} 5. Nc3 {[%clk 0:02:59.7]} 5... h6
{[%clk 0:02:56.4]} 6. Bh4 {[%clk 0:02:56.8]} 6... O-O {[%clk 0:02:56.3]} 7. Qc2
{[%clk 0:02:56.8]} 7... b6 {[%clk 0:02:49.5]} 8. Nf3 {[%clk 0:02:53.9]} 8... Bb7
{[%clk 0:02:48.4]} 9. Bxf6 {[%clk 0:02:53.5]} 9... Bxf6 {[%clk 0:02:47.5]} 10.
cxd5 {[%clk 0:02:54.4]} 10... exd5 {[%clk 0:02:47.9]} 11. Rd1 {[%clk 0:02:54.7]}
11... c5 {[%clk 0:02:35.5]} 12. Be2 {[%clk 0:02:26.8]} 12... Nd7 {[%clk
0:02:02.8]} 13. O-O {[%clk 0:02:18.1]} 13... Rc8 {[%clk 0:01:58.1]} 14. Qf5
{[%clk 0:02:07.6]} 14... g6 {[%clk 0:01:48.5]} 15. Qf4 {[%clk 0:02:07.7]} 15...
Bg7 {[%clk 0:01:41.6]} 16. dxc5 {[%clk 0:02:05.1]} 16... Nxc5 {[%clk 0:01:41.5]}
17. Nd4 {[%clk 0:02:05.1]} 17... Qe7 {[%clk 0:01:28]} 18. Bf3 {[%clk 0:01:25.2]}
18... Ne6 {[%clk 0:01:27]} 19. Nxe6 {[%clk 0:01:02.6]} 19... fxe6 {[%clk
0:01:27.9]} 20. Qg3 {[%clk 0:00:57.3]} 20... Kh7 {[%clk 0:01:22.4]} 21. Rd2
{[%clk 0:00:51.6]} 21... Bxc3 {[%clk 0:01:17.4]} 22. bxc3 {[%clk 0:00:52.5]}
22... Rxc3 {[%clk 0:01:17.8]} 23. Qe5 {[%clk 0:00:50.7]} 23... Qf6 {[%clk
0:01:06.3]} 24. Qd6 {[%clk 0:00:50.4]} 24... Rd8 {[%clk 0:01:03.3]} 25. Qb4
{[%clk 0:00:48.3]} 25... Rdc8 {[%clk 0:01:01.7]} 26. h3 {[%clk 0:00:45.7]} 26...
h5 {[%clk 0:00:56]} 27. Rfd1 {[%clk 0:00:42.6]} 27... R8c7 {[%clk 0:00:52.3]}
28. a4 {[%clk 0:00:39.5]} 28... R3c4 {[%clk 0:00:48.7]} 29. Qa3 {[%clk
0:00:36.3]} 29... Qc3 {[%clk 0:00:39]} 30. Qd6 {[%clk 0:00:36]} 30... R4c6
{[%clk 0:00:30.8]} 31. Qd8 {[%clk 0:00:33.2]} 31... Qg7 {[%clk 0:00:26.8]} 32.
e4 {[%clk 0:00:31.4]} 32... Rc8 {[%clk 0:00:16.8]} 33. Qg5 {[%clk 0:00:30.5]}
33... Rc5 {[%clk 0:00:05.2]} 34. exd5 {[%clk 0:00:29.9]} 34... exd5 {[%clk
0:00:05.2]} 35. Bxd5 {[%clk 0:00:14.5]} 35... R8c7 {[%clk 0:00:05.3]} 36. Qg3
{[%clk 0:00:08.2]} 36... Bxd5 {[%clk 0:00:04.8]} 37. Rxd5 {[%clk 0:00:09.1]}
37... Rxd5 {[%clk 0:00:05]} 38. Rxd5 {[%clk 0:00:10]} 38... Rd7 {[%clk
0:00:04.3]} 39. Rg5 {[%clk 0:00:08.8]} 39... Re7 {[%clk 0:00:02.5]} 40. h4
{[%clk 0:00:07.9]} 40... Re1+ {[%clk 0:00:02.4]} 41. Kh2 {[%clk 0:00:07.8]}
41... Re6 {[%clk 0:00:02.9]} 42. f3 {[%clk 0:00:07.1]} 42... Rf6 {[%clk
0:00:02.8]} 43. Rd5 {[%clk 0:00:06.8]} 43... Rf7 {[%clk 0:00:02.2]} 44. Re5
{[%clk 0:00:06.8]} 44... Re7 {[%clk 0:00:02.1]} 45. Rd5 {[%clk 0:00:06.5]} 45...
Rd7 {[%clk 0:00:02.4]} 46. Rg5 {[%clk 0:00:06.7]} 46... Re7 {[%clk 0:00:02.4]}
47. Qf4 {[%clk 0:00:06.5]} 47... Rf7 {[%clk 0:00:02.6]} 48. Qe4 {[%clk 0:00:07]}
48... Re7 {[%clk 0:00:02.7]} 49. Rxh5+ {[%clk 0:00:06.9]} 49... Kg8 {[%clk
0:00:02.5]} 50. Qc4+ {[%clk 0:00:06.7]} 50... Kf8 {[%clk 0:00:02.6]} 51. Rd5
{[%clk 0:00:05.5]} 51... Qf6 {[%clk 0:00:02.8]} 52. Rd8+ {[%clk 0:00:04.3]}
52... Kg7 {[%clk 0:00:03]} 53. Qg8+ {[%clk 0:00:03.7]} 53... Kh6 {[%clk
0:00:03.5]} 54. Qh8+ {[%clk 0:00:03.8]} 54... Qxh8 {[%clk 0:00:03.6]} 55. Rxh8+
{[%clk 0:00:04.7]} 55... Kg7 {[%clk 0:00:04.4]} 56. Ra8 {[%clk 0:00:04.9]} 56...
Kf6 {[%clk 0:00:02.9]} 57. g4 {[%clk 0:00:05.2]} 57... Ke5 {[%clk 0:00:03.3]}
58. Kg3 {[%clk 0:00:05.7]} 58... Kd4 {[%clk 0:00:03.7]} 59. Rg8 {[%clk
0:00:05.1]} 59... Re6 {[%clk 0:00:03.4]} 60. h5 {[%clk 0:00:03.7]} 60... gxh5
{[%clk 0:00:03.4]} 61. gxh5 {[%clk 0:00:04.6]} 61... Kc4 {[%clk 0:00:03.8]} 62.
f4 {[%clk 0:00:04.5]} 62... Kb4 {[%clk 0:00:03.8]} 63. f5 {[%clk 0:00:04.8]}
63... Re1 {[%clk 0:00:04.5]} 64. Kf4 {[%clk 0:00:05]} 64... Rf1+ {[%clk
0:00:03.9]} 65. Ke5 {[%clk 0:00:05.2]} 65... Kxa4 {[%clk 0:00:04.8]} 66. f6
{[%clk 0:00:05.4]} 66... b5 {[%clk 0:00:04.8]} 67. Rg4+ {[%clk 0:00:03.3]} 67...
Ka3 {[%clk 0:00:04.2]} 68. h6 {[%clk 0:00:03.9]} 68... Rh1 {[%clk 0:00:03.1]}
69. f7 {[%clk 0:00:04]} 69... Re1+ {[%clk 0:00:02.8]} 70. Kf5 {[%clk 0:00:04.3]}
70... Rf1+ {[%clk 0:00:03.2]} 71. Rf4 {[%clk 0:00:04.9]} 1-0

[Event "Late-Titled-Tuesday-Blitz-October-24-2023"]
[Site "Chess.com"]
[Date "2023.10.24"]
[Round "4"]
[White "igorkovalenko"]
[Black "Ali_rastbod"]
[Result "1-0"]
[WhiteElo "2936"]
[BlackElo "2748"]
[TimeControl "180+1"]
[EndTime "14:41:18 PDT"]
[Termination "igorkovalenko won by resignation"]

1. c4 {[%clk 0:02:59.8]} 1... e6 {[%clk 0:02:57.6]} 2. g3 {[%clk 0:02:59.3]}
2... d5 {[%clk 0:02:58.3]} 3. Bg2 {[%clk 0:03:00.1]} 3... Nf6 {[%clk 0:02:57.4]}
4. b3 {[%clk 0:02:59.6]} 4... d4 {[%clk 0:02:57.4]} 5. f4 {[%clk 0:02:55.8]}
5... Nc6 {[%clk 0:02:51.8]} 6. Nf3 {[%clk 0:02:54.5]} 6... Bc5 {[%clk
0:02:52.2]} 7. a3 {[%clk 0:02:51.8]} 7... a5 {[%clk 0:02:51.5]} 8. O-O {[%clk
0:02:51.1]} 8... O-O {[%clk 0:02:47.5]} 9. Kh1 {[%clk 0:02:51.2]} 9... e5 {[%clk
0:02:35.2]} 10. d3 {[%clk 0:02:37.4]} 10... e4 {[%clk 0:02:01]} 11. Ng5 {[%clk
0:02:35.4]} 11... e3 {[%clk 0:01:57.3]} 12. Bb2 {[%clk 0:02:30]} 12... Re8
{[%clk 0:01:48.4]} 13. Bxc6 {[%clk 0:02:20]} 13... bxc6 {[%clk 0:01:46]} 14. Nf3
{[%clk 0:02:20.5]} 14... Bb6 {[%clk 0:01:27.7]} 15. b4 {[%clk 0:02:17]} 15... c5
{[%clk 0:01:27.8]} 16. b5 {[%clk 0:01:49.5]} 16... a4 {[%clk 0:01:22.7]} 17. Nc3
{[%clk 0:01:37.5]} 17... dxc3 {[%clk 0:01:21]} 18. Bxc3 {[%clk 0:01:38.4]} 18...
Bb7 {[%clk 0:01:20.4]} 19. h3 {[%clk 0:01:37.4]} 19... Nh5 {[%clk 0:01:00.2]}
20. Kh2 {[%clk 0:01:37]} 20... f6 {[%clk 0:00:59.4]} 21. Rb1 {[%clk 0:01:34]}
21... Qd6 {[%clk 0:00:57.1]} 22. Qe1 {[%clk 0:01:33.2]} 22... g6 {[%clk
0:00:52.1]} 23. Rd1 {[%clk 0:01:10.7]} 23... Rad8 {[%clk 0:00:51]} 24. Rb1
{[%clk 0:01:05.9]} 24... Ng7 {[%clk 0:00:49.8]} 25. Nh4 {[%clk 0:01:04.9]} 25...
Nf5 {[%clk 0:00:45.8]} 26. Nxf5 {[%clk 0:01:04]} 26... gxf5 {[%clk 0:00:46.7]}
27. Rg1 {[%clk 0:01:00.7]} 27... Kh8 {[%clk 0:00:44.4]} 28. Qf1 {[%clk
0:00:47.9]} 28... Rg8 {[%clk 0:00:42.2]} 29. g4 {[%clk 0:00:47.7]} 29... fxg4
{[%clk 0:00:30.9]} 30. hxg4 {[%clk 0:00:47.2]} 30... Qe6 {[%clk 0:00:29.8]} 31.
Qh3 {[%clk 0:00:45.1]} 31... Rd4 {[%clk 0:00:26.1]} 32. Rbf1 {[%clk 0:00:43.8]}
32... Bc8 {[%clk 0:00:22.4]} 33. Qh4 {[%clk 0:00:38.3]} 33... c6 {[%clk
0:00:18.1]} 34. bxc6 {[%clk 0:00:36.7]} 34... Qxc6 {[%clk 0:00:19]} 35. Bxd4
{[%clk 0:00:33.9]} 35... cxd4 {[%clk 0:00:19.2]} 36. g5 {[%clk 0:00:33.4]} 36...
f5 {[%clk 0:00:19]} 37. Rb1 {[%clk 0:00:29.4]} 37... Bc7 {[%clk 0:00:18.2]} 38.
Rb5 {[%clk 0:00:28.2]} 38... Qd6 {[%clk 0:00:18.1]} 39. Re5 {[%clk 0:00:27.2]}
39... Qxa3 {[%clk 0:00:15.7]} 40. g6 {[%clk 0:00:26.1]} 40... Rxg6 {[%clk
0:00:07]} 41. Re8+ {[%clk 0:00:23.9]} 41... Kg7 {[%clk 0:00:06.3]} 42. Rxg6+
{[%clk 0:00:24.2]} 42... hxg6 {[%clk 0:00:06.4]} 43. Rxc8 {[%clk 0:00:21.9]}
43... Qd6 {[%clk 0:00:03.3]} 44. Qh8+ {[%clk 0:00:21.3]} 44... Kf7 {[%clk
0:00:04]} 45. Qg8+ {[%clk 0:00:19.7]} 45... Ke7 {[%clk 0:00:03.9]} 46. Qf8+
{[%clk 0:00:17.8]} 46... Kd7 {[%clk 0:00:04.3]} 47. Qxd6+ {[%clk 0:00:18]} 47...
Bxd6 {[%clk 0:00:03.6]} 48. Ra8 {[%clk 0:00:18.3]} 48... a3 {[%clk 0:00:03.6]}
49. Kg2 {[%clk 0:00:17.5]} 49... Kc6 {[%clk 0:00:03.6]} 50. Kf3 {[%clk
0:00:17.5]} 50... Bb4 {[%clk 0:00:04.2]} 51. Kg3 {[%clk 0:00:15.4]} 51... Be7
{[%clk 0:00:03.2]} 52. Ra4 {[%clk 0:00:14.6]} 52... Kb6 {[%clk 0:00:03]} 53. Kf3
{[%clk 0:00:13]} 53... Kc6 {[%clk 0:00:03.3]} 54. Kg2 {[%clk 0:00:13.2]} 54...
Kb6 {[%clk 0:00:03.5]} 55. Kf1 {[%clk 0:00:13.6]} 55... Kc6 {[%clk 0:00:04]} 56.
Ke1 {[%clk 0:00:13.8]} 56... Bd6 {[%clk 0:00:04.6]} 57. Kd1 {[%clk 0:00:13.9]}
57... Bxf4 {[%clk 0:00:05]} 58. Rxa3 {[%clk 0:00:12.6]} 58... g5 {[%clk
0:00:05.5]} 59. Ra5 {[%clk 0:00:12.6]} 59... g4 {[%clk 0:00:05.3]} 60. Rxf5
{[%clk 0:00:12.8]} 60... Bc7 {[%clk 0:00:05.8]} 61. Rg5 {[%clk 0:00:11.6]} 61...
g3 {[%clk 0:00:05.6]} 62. Rg4 {[%clk 0:00:12.2]} 62... Kc5 {[%clk 0:00:05.6]}
63. Ke1 {[%clk 0:00:12.5]} 63... Be5 {[%clk 0:00:05.8]} 64. Kf1 {[%clk 0:00:13]}
64... Kb4 {[%clk 0:00:06.1]} 65. Re4 {[%clk 0:00:12.8]} 65... Bc7 {[%clk
0:00:03.4]} 66. Rxd4 {[%clk 0:00:12.7]} 66... Kc3 {[%clk 0:00:04.3]} 67. Rg4
{[%clk 0:00:13]} 67... Kd2 {[%clk 0:00:04.4]} 68. c5 {[%clk 0:00:12.8]} 68...
Be5 {[%clk 0:00:04.7]} 69. d4 {[%clk 0:00:12.8]} 1-0